bitfinex/quotes_BTCUSD_20250324
["timestamp","ask_amount","ask_price","bid_price","bid_amount"]
[1742790990910,1.82543368,86833.0,86832.0,2.7e-07]
[1742790992357,0.011518,86818.0,86817.0,0.57308]
[1742790992572,0.011518,86818.0,86817.0,0.57320263]
[1742790992795,0.02543834,86818.0,86817.0,0.57320263]
[1742790993755,0.02943834,86818.0,86817.0,0.57320263]
[1742790998425,0.02943834,86818.0,86817.0,0.57337223]
[1742791001871,0.02943834,86818.0,86817.0,0.00029223]
[1742791005008,0.02943834,86818.0,86817.0,0.08019223]
[1742791011280,0.02943834,86818.0,86817.0,0.12599223]
[1742791011510,0.02943834,86818.0,86817.0,0.69919223]
[1742791015619,0.02943834,86818.0,86817.0,0.72278085]
[1742791024199,0.02943834,86818.0,86817.0,0.72258488]
[1742791026034,0.01792034,86818.0,86817.0,0.72258488]
[1742791026449,0.02943834,86818.0,86817.0,0.72258488]
[1742791031940,0.02943834,86818.0,86817.0,0.85318488]
[1742791033758,0.01792034,86818.0,86817.0,0.72258488]
[1742791033959,0.01792034,86818.0,86817.0,0.98427791]
[1742791034387,0.004,86818.0,86817.0,0.98427791]
[1742791034759,0.53885024,86820.0,86817.0,0.98427791]
[1742791034964,0.53885024,86820.0,86819.0,0.135118]
[1742791035158,0.53885024,86820.0,86819.0,0.25469303]
[1742791035582,0.53885024,86820.0,86819.0,0.27969303]
[1742791035583,2.4e-07,86820.0,86819.0,0.27969303]
[1742791036012,2.4e-07,86820.0,86819.0,0.70803351]
[1742791036214,0.0003392,86833.0,86830.0,0.365451]
[1742791036467,0.0003392,86833.0,86832.0,0.365445]
[1742791036685,0.0003392,86833.0,86832.0,0.61598003]
[1742791037123,0.241781,86856.0,86848.0,0.1236]
[1742791037297,0.241786,86854.0,86849.0,0.70404]
[1742791037618,0.00961826,86853.0,86849.0,0.70404]
[1742791037977,0.01803596,86857.0,86850.0,0.230282]
[1742791038207,0.00961826,86852.0,86849.0,0.715554]
[1742791038546,0.00961826,86851.0,86849.0,0.70404]
[1742791038716,0.001,86854.0,86849.0,0.70404]
[1742791038916,0.00961826,86853.0,86849.0,0.70404]
[1742791039322,0.00961826,86853.0,86849.0,0.934322]
[1742791039525,0.00961826,86853.0,86849.0,0.70404]
[1742791039733,0.00961826,86853.0,86851.0,0.011513]
[1742791039923,0.001,86854.0,86853.0,0.230274]
[1742791040223,0.001,86854.0,86853.0,0.317587]
[1742791040428,0.011509,86886.0,86857.0,0.0478]
[1742791040627,0.000339,86890.0,86869.0,0.317542]
[1742791040804,0.000339,86890.0,86881.0,0.011509]
[1742791041011,0.00074784,86890.0,86887.0,0.0758]
[1742791041212,0.00074784,86890.0,86888.0,0.13788]
[1742791041838,0.01063473,86889.0,86888.0,0.13788]
[1742791042039,0.01063473,86889.0,86888.0,0.368061]
[1742791042238,0.00074784,86890.0,86888.0,0.52242318]
[1742791042409,0.00074784,86890.0,86889.0,0.011508]
[1742791042611,0.00074784,86890.0,86889.0,0.13338458]
[1742791043016,0.00074784,86890.0,86889.0,0.13108303]
[1742791043639,0.00274784,86890.0,86889.0,0.18018303]
[1742791044035,0.00074784,86890.0,86889.0,0.18018303]
[1742791044267,0.00074784,86890.0,86889.0,0.18118303]
[1742791044436,0.00274784,86890.0,86889.0,0.16967503]
[1742791045070,0.00274784,86890.0,86889.0,0.18118303]
[1742791047698,0.00274784,86890.0,86889.0,0.16967503]
[1742791048469,0.00274784,86890.0,86889.0,0.18118303]
[1742791051853,0.00074784,86890.0,86889.0,0.18118303]
[1742791052237,0.00074784,86890.0,86889.0,0.16967503]
[1742791052446,0.00074784,86890.0,86889.0,0.15592]
[1742791052984,0.00074784,86890.0,86889.0,0.15492]
[1742791053486,0.00074784,86890.0,86889.0,0.15792]
[1742791053863,0.00074784,86890.0,86889.0,0.388098]
[1742791054505,0.00074784,86890.0,86889.0,0.15792]
[1742791054688,0.01163652,86890.0,86889.0,0.15792]
[1742791055234,0.01163652,86890.0,86889.0,0.17507565]
[1742791055381,0.01163652,86890.0,86889.0,0.17207565]
[1742791056789,0.01163652,86890.0,86889.0,0.17507565]
[1742791057190,0.01163652,86890.0,86889.0,0.17207565]
[1742791057389,0.01163652,86890.0,86889.0,0.17507565]
[1742791057617,0.00074784,86890.0,86889.0,0.17507565]
[1742791057860,0.01164365,86890.0,86889.0,0.17507565]
[1742791058041,0.00074784,86890.0,86889.0,0.17507565]
[1742791058218,0.01164365,86890.0,86889.0,0.17507565]
[1742791058431,0.00074784,86890.0,86889.0,0.17507565]
[1742791058632,0.01164365,86890.0,86889.0,0.17507565]
[1742791058835,0.00074784,86890.0,86889.0,0.17507565]
[1742791059304,0.01164365,86890.0,86889.0,0.17507565]
[1742791060741,0.02315165,86890.0,86889.0,0.02015565]
[1742791060903,0.02545398,86890.0,86889.0,0.02015565]
[1742791061104,0.02315165,86890.0,86889.0,0.02015565]
[1742791061821,0.011509,86883.0,86882.0,0.57304]
[1742791062102,0.25247712,86883.0,86882.0,0.57304]
[1742791063359,0.26424829,86883.0,86882.0,0.57304]
[1742791064176,0.26424829,86883.0,86882.0,0.57404]
[1742791064389,0.26624829,86883.0,86882.0,0.57404]
[1742791068162,0.01277412,86883.0,86882.0,0.57404]
[1742791068520,0.01277412,86883.0,86882.0,0.65474]
[1742791069844,0.01277412,86883.0,86882.0,1.01602103]
[1742791069845,0.002,86883.0,86882.0,1.01602103]
[1742791070401,0.0023388,86883.0,86882.0,1.03211086]
[1742791070783,0.0023388,86883.0,86882.0,1.03311086]
[1742791071083,0.0003388,86883.0,86882.0,1.03311086]
[1742791071455,0.0023388,86883.0,86882.0,1.04461786]
[1742791071677,0.0023388,86883.0,86882.0,1.04361786]
[1742791071883,0.0003388,86883.0,86882.0,1.04361786]
[1742791072055,0.0003388,86883.0,86882.0,1.04861786]
[1742791072259,0.0003388,86883.0,86882.0,1.18962886]
[1742791073058,0.0003388,86883.0,86882.0,0.95931186]
[1742791073681,0.0003388,86883.0,86882.0,0.94780486]
[1742791074868,0.01120902,86883.0,86882.0,1.17800186]
[1742791075065,0.0003388,86883.0,86882.0,1.17800186]
[1742791076504,0.0003388,86883.0,86882.0,0.79540486]
[1742791076707,0.0003388,86883.0,86882.0,0.94728486]
[1742791076938,0.01123656,86883.0,86882.0,0.94728486]
[1742791077466,0.0003388,86883.0,86882.0,0.94728486]
[1742791078284,0.01123656,86883.0,86882.0,0.94728486]
[1742791079983,0.0003388,86883.0,86882.0,0.94728486]
[1742791080531,0.0003388,86883.0,86882.0,0.84949503]
[1742791080729,0.0003388,86883.0,86882.0,0.8666099]
[1742791081079,0.01124013,86883.0,86882.0,0.8666099]
[1742791081597,0.01124013,86883.0,86882.0,1.07969203]
[1742791081808,0.0003388,86883.0,86882.0,1.07969203]
[1742791082801,0.0003388,86883.0,86882.0,1.09120103]
[1742791083007,0.0003388,86883.0,86882.0,1.16910103]
[1742791083800,0.0003388,86883.0,86882.0,1.21640103]
[1742791084218,0.0003388,86883.0,86882.0,1.23972587]
[1742791084415,0.0003388,86883.0,86882.0,1.68917328]
[1742791085829,0.0003388,86883.0,86882.0,1.98917328]
[1742791086436,0.0003388,86883.0,86882.0,1.98417328]
[1742791086790,0.0003388,86883.0,86882.0,1.99278263]
[1742791086979,0.0003388,86883.0,86882.0,1.99778263]
[1742791087163,0.0003388,86883.0,86882.0,1.99278263]
[1742791087542,0.0003388,86883.0,86882.0,2.00933161]
[1742791087931,0.0003388,86883.0,86882.0,2.00733161]
[1742791088272,0.0013388,86883.0,86882.0,2.01133161]
[1742791089012,0.0013388,86883.0,86882.0,2.00278263]
[1742791090531,0.2430418,86883.0,86882.0,0.06897262]
[1742791090733,0.01229731,86883.0,86882.0,0.03332484]
[1742791090961,0.01229731,86883.0,86882.0,0.04186552]
[1742791091166,0.25400031,86883.0,86882.0,0.04186552]
[1742791091366,0.25400031,86883.0,86882.0,0.16930068]
[1742791091588,0.25300031,86883.0,86882.0,0.16530068]
[1742791091786,0.25300031,86883.0,86882.0,0.16730068]
[1742791092169,0.25300031,86883.0,86882.0,0.15876]
[1742791092370,0.01129731,86883.0,86882.0,0.27833503]
[1742791092569,0.0003388,86883.0,86882.0,0.52004103]
[1742791093421,0.0003388,86883.0,86882.0,0.12157503]
[1742791093602,0.0003388,86883.0,86882.0,0.27593503]
[1742791094029,0.00930568,86883.0,86882.0,0.28744403]
[1742791094232,0.0003388,86883.0,86882.0,0.51764103]
[1742791094747,0.0003388,86883.0,86882.0,0.27593503]
[1742791095064,0.00930713,86883.0,86882.0,0.51764103]
[1742791095280,0.2305328,86883.0,86882.0,0.27593503]
[1742791095592,0.00930713,86883.0,86882.0,0.27593503]
[1742791095807,0.00930713,86883.0,86882.0,0.50613203]
[1742791096079,0.25101013,86883.0,86882.0,0.006]
[1742791096864,0.25101013,86883.0,86882.0,0.004]
[1742791097056,0.241728,86874.0,86873.0,0.15004]
[1742791097262,0.241728,86874.0,86873.0,0.26961503]
[1742791097458,0.25061541,86874.0,86873.0,0.26961503]
[1742791098292,0.25061541,86874.0,86873.0,0.26937503]
[1742791098491,0.25061541,86874.0,86873.0,0.27237503]
[1742791098955,0.25061541,86874.0,86873.0,0.27337503]
[1742791099364,0.25061541,86874.0,86873.0,0.004]
[1742791100252,0.011511,86869.0,86868.0,4e-07]
[1742791100396,0.67164433,86869.0,86868.0,4e-07]
[1742791100608,0.541776,86857.0,86856.0,0.14936]
[1742791100979,0.011514,86845.0,86844.0,0.14928]
[1742791101180,0.02024544,86845.0,86844.0,0.14928]
[1742791101637,0.25054244,86845.0,86844.0,0.14928]
[1742791102023,0.25054244,86845.0,86844.0,0.14940261]
[1742791102819,0.25054244,86845.0,86844.0,0.00012261]
[1742791103226,0.25054244,86845.0,86844.0,0.15100261]
[1742791103436,0.25054244,86845.0,86844.0,0.15700261]
[1742791104250,0.25054244,86845.0,86844.0,0.15680261]
[1742791105647,0.25054244,86845.0,86844.0,0.00812261]
[1742791105855,0.25054244,86845.0,86844.0,0.15664261]
[1742791107526,0.25054244,86845.0,86844.0,0.00812261]
[1742791107726,0.25054244,86845.0,86844.0,0.15624261]
[1742791109348,0.25054244,86845.0,86844.0,0.15641201]
[1742791110959,0.25054244,86845.0,86844.0,0.13141201]
[1742791112174,0.25054244,86845.0,86844.0,0.0001694]
[1742791121536,0.25088124,86845.0,86844.0,0.0001694]
[1742791135297,0.25088124,86845.0,86844.0,0.1450494]
[1742791141047,0.25088124,86845.0,86844.0,0.16655595]
[1742791142081,0.25088124,86845.0,86844.0,0.17055595]
[1742791143530,0.25088124,86845.0,86844.0,0.02567595]
[1742791146157,0.25088124,86845.0,86844.0,0.10647595]
[1742791147943,0.25088124,86845.0,86844.0,0.02567595]
[1742791149925,0.25088124,86845.0,86844.0,0.0041694]
[1742791158179,0.25088124,86845.0,86844.0,0.1461294]
[1742791158353,0.55088124,86845.0,86844.0,0.0041694]
[1742791164196,0.55088124,86845.0,86844.0,0.0001694]
[1742791164732,0.55088124,86845.0,86844.0,0.0021694]
[1742791165085,0.55088124,86845.0,86844.0,0.0001694]
[1742791165287,0.55088124,86845.0,86844.0,0.0021694]
[1742791170618,0.81389712,86845.0,86844.0,4e-07]
[1742791171738,0.241873,86822.0,86821.0,0.0797]
[1742791171967,0.241873,86822.0,86821.0,0.07974074]
[1742791172145,0.25037561,86822.0,86821.0,0.07974074]
[1742791172955,0.25037561,86822.0,86821.0,4.074e-05]
[1742791173694,0.26167068,86822.0,86821.0,4.074e-05]
[1742791174183,0.26167068,86822.0,86821.0,0.00304074]
[1742791177852,0.27029119,86822.0,86821.0,0.00304074]
[1742791179105,0.27229119,86822.0,86821.0,0.00304074]
[1742791180038,0.27229119,86822.0,86821.0,4.074e-05]
[1742791180875,0.79050304,86822.0,86821.0,4.074e-05]
[1742791181077,0.70640707,86822.0,86821.0,4.074e-05]
[1742791181207,0.7244485,86822.0,86821.0,4.074e-05]
[1742791181714,0.7224485,86822.0,86821.0,4.074e-05]
[1742791182156,0.7254485,86822.0,86821.0,0.00021014]
[1742791187699,0.7224485,86822.0,86821.0,0.00021014]
[1742791188064,0.7294485,86822.0,86821.0,0.00021014]
[1742791191208,0.7294485,86822.0,86821.0,1.4e-07]
[1742791191410,0.541879,86820.0,86819.0,5.4e-07]
[1742791191615,0.541879,86820.0,86817.0,9.626e-05]
[1742791191616,0.54490685,86818.0,86817.0,8e-07]
[1742791191831,0.67599988,86818.0,86817.0,8e-07]
[1742791192084,0.68429619,86818.0,86817.0,8e-07]
[1742791193232,0.68629619,86818.0,86817.0,8e-07]
[1742791194298,0.69129619,86818.0,86817.0,8e-07]
[1742791199494,0.68429619,86818.0,86817.0,8e-07]
[1742791200012,0.68629619,86818.0,86817.0,8e-07]
[1742791201098,0.69129619,86818.0,86817.0,8e-07]
[1742791201296,0.57172116,86818.0,86817.0,8e-07]
[1742791202201,0.55718031,86818.0,86817.0,8e-07]
[1742791203371,0.25718031,86818.0,86817.0,8e-07]
[1742791203578,0.25718031,86818.0,86817.0,0.0825008]
[1742791203579,0.02681431,86818.0,86817.0,0.0825008]
[1742791203790,0.02681431,86818.0,86817.0,0.10599801]
[1742791204197,0.32181431,86818.0,86817.0,0.10599801]
[1742791204430,0.02181431,86818.0,86817.0,0.10599801]
[1742791204653,0.32381431,86818.0,86817.0,0.10599801]
[1742791205006,0.32481431,86818.0,86817.0,0.10599801]
[1742791205242,0.32515331,86818.0,86817.0,0.10599801]
[1742791211182,0.32515331,86818.0,86817.0,0.02349801]
[1742791214536,0.32515331,86818.0,86817.0,8e-07]
[1742791217608,0.34319671,86818.0,86817.0,8e-07]
[1742791218623,0.03167871,86818.0,86817.0,0.0757008]
[1742791218817,0.03167871,86818.0,86817.0,0.3550698]
[1742791218981,0.01363531,86818.0,86817.0,0.1247008]
[1742791219181,0.016857,86818.0,86817.0,0.2619808]
[1742791219401,0.02368735,86818.0,86817.0,0.2619808]
[1742791219985,0.02368735,86818.0,86817.0,0.1247008]
[1742791220197,0.02368735,86818.0,86817.0,0.2619008]
[1742791220362,0.02368735,86818.0,86817.0,0.1247008]
[1742791220573,0.01968735,86818.0,86817.0,0.2618608]
[1742791220894,0.01968735,86818.0,86817.0,0.1247008]
[1742791221117,0.02168735,86818.0,86817.0,0.2617808]
[1742791221481,0.01868735,86818.0,86817.0,0.1247008]
[1742791221847,0.02068735,86818.0,86817.0,0.2627408]
[1742791222991,0.02068735,86818.0,86817.0,0.1257008]
[1742791223362,0.00916935,86818.0,86817.0,0.1257008]
[1742791223567,0.002339,86818.0,86817.0,0.62400283]
[1742791223741,0.002339,86818.0,86817.0,0.61248483]
[1742791223941,0.002339,86818.0,86817.0,0.38211583]
[1742791224353,0.00928011,86818.0,86817.0,0.38211583]
[1742791224555,0.000339,86818.0,86817.0,0.62320283]
[1742791224980,0.001339,86818.0,86817.0,0.62420283]
[1742791225107,0.001339,86818.0,86817.0,0.48616283]
[1742791225306,0.001339,86818.0,86817.0,0.62312283]
[1742791225612,0.000339,86818.0,86817.0,0.62612283]
[1742791225810,0.000339,86818.0,86817.0,0.62412283]
[1742791226283,0.000339,86818.0,86817.0,0.62812283]
[1742791227400,0.000339,86818.0,86817.0,0.62792283]
[1742791228263,0.000339,86818.0,86817.0,1.04172246]
[1742791228646,0.000339,86818.0,86817.0,1.06672246]
[1742791228855,0.000339,86818.0,86817.0,1.04172246]
[1742791229462,0.000339,86818.0,86817.0,1.03772246]
[1742791229900,0.001339,86818.0,86817.0,1.04272246]
[1742791230106,0.001339,86818.0,86817.0,1.05116656]
[1742791230908,0.001339,86818.0,86817.0,1.05016656]
[1742791231107,0.001339,86818.0,86817.0,1.05316656]
[1742791231308,0.001339,86818.0,86817.0,1.06387484]
[1742791235467,0.001,86820.0,86819.0,0.241882]
[1742791235707,0.001,86820.0,86819.0,0.48515703]
[1742791235915,0.001,86820.0,86819.0,0.89895666]
[1742791236139,0.001,86820.0,86819.0,1.19895666]
[1742791236873,0.001,86820.0,86819.0,1.21047166]
[1742791237076,0.001,86820.0,86819.0,1.22117994]
[1742791237250,0.00012226,86822.0,86821.0,0.368176]
[1742791237470,0.00012226,86822.0,86821.0,0.48775103]
[1742791239014,0.00012226,86822.0,86821.0,0.50345931]
[1742791239238,0.00012226,86822.0,86821.0,0.50945931]
[1742791239842,0.00012226,86822.0,86821.0,0.92325894]
[1742791241001,0.00012226,86822.0,86821.0,0.91225894]
[1742791241211,0.00012226,86822.0,86821.0,0.91825894]
[1742791241412,0.00112226,86822.0,86821.0,0.92325894]
[1742791242722,0.00112226,86822.0,86821.0,1.49625894]
[1742791243031,0.00112226,86822.0,86821.0,1.51984329]
[1742791243465,0.00112226,86822.0,86821.0,0.70496729]
[1742791243671,0.24299526,86822.0,86821.0,0.87346766]
[1742791243888,0.25622505,86822.0,86821.0,0.73786766]
[1742791244092,0.25622505,86822.0,86821.0,0.87350766]
[1742791244305,0.25522505,86822.0,86821.0,0.86850766]
[1742791244653,0.25522505,86822.0,86821.0,0.87250766]
[1742791245060,0.25522505,86822.0,86821.0,0.86250766]
[1742791245451,0.25622505,86822.0,86821.0,0.59658435]
[1742791245667,0.25622505,86822.0,86821.0,0.73710435]
[1742791245890,0.25622505,86822.0,86821.0,0.73210435]
[1742791246289,0.25622505,86822.0,86821.0,0.73410435]
[1742791248395,0.25622505,86822.0,86821.0,0.73390435]
[1742791249008,0.25622505,86822.0,86821.0,0.73386435]
[1742791250372,0.25522505,86822.0,86821.0,0.575]
[1742791251123,0.55522505,86822.0,86821.0,0.573]
[1742791251542,0.55822505,86822.0,86821.0,0.573]
[1742791251957,0.55522505,86822.0,86821.0,0.573]
[1742791252140,0.56056405,86822.0,86821.0,0.573]
[1742791253562,0.56056405,86822.0,86821.0,0.70812]
[1742791253968,0.55556405,86822.0,86821.0,0.70812]
[1742791255228,0.56056405,86822.0,86821.0,0.70812]
[1742791255437,0.56056405,86822.0,86821.0,0.573]
[1742791255851,0.63976405,86822.0,86821.0,0.573]
[1742791256862,0.63476405,86822.0,86821.0,0.573]
[1742791257065,0.63776405,86822.0,86821.0,0.573]
[1742791257843,0.63476405,86822.0,86821.0,0.573]
[1742791258265,0.63976405,86822.0,86821.0,0.573]
[1742791258635,0.311517,86821.0,86820.0,0.0001695]
[1742791258838,0.32444282,86821.0,86820.0,0.0001695]
[1742791259828,0.02444282,86821.0,86820.0,0.0001695]
[1742791260238,0.01792582,86821.0,86820.0,0.13126253]
[1742791260439,0.00046126,86822.0,86821.0,0.011517]
[1742791260639,0.00046126,86822.0,86821.0,0.36375414]
[1742791260840,0.00046126,86822.0,86821.0,0.43885103]
[1742791261831,0.00046126,86822.0,86821.0,0.44955931]
[1742791262078,0.00046126,86822.0,86821.0,0.45455931]
[1742791262223,0.00246126,86822.0,86821.0,0.45455931]
[1742791263707,0.00046126,86822.0,86821.0,0.45455931]
[1742791263856,0.00046126,86822.0,86821.0,0.45855931]
[1742791266292,0.00046126,86822.0,86821.0,0.87235894]
[1742791268118,0.0003388,86844.0,86842.0,0.230301]
[1742791268320,0.0004471,86844.0,86843.0,0.13512]
[1742791268689,0.0004471,86844.0,86843.0,0.48499503]
[1742791270498,0.0004471,86844.0,86843.0,0.54411003]
[1742791270696,0.0024471,86844.0,86843.0,0.54411003]
[1742791270913,0.0024471,86844.0,86843.0,0.95790966]
[1742791271243,0.0004471,86844.0,86843.0,0.95790966]
[1742791271489,0.0004471,86844.0,86843.0,0.95990966]
[1742791271840,0.0004471,86844.0,86843.0,0.94639466]
[1742791272289,0.0004471,86844.0,86843.0,0.95039466]
[1742791272488,0.0004471,86844.0,86843.0,0.96390966]
[1742791272692,0.0004471,86844.0,86843.0,0.98682161]
[1742791272933,0.0004471,86844.0,86843.0,0.97530661]
[1742791273263,0.0004471,86844.0,86843.0,0.74500661]
[1742791273461,0.0004471,86844.0,86843.0,0.97530661]
[1742791282424,0.0004471,86844.0,86843.0,0.74500661]
[1742791282987,0.2307451,86844.0,86843.0,0.74500661]
[1742791283160,0.01143043,86844.0,86843.0,0.74500661]
[1742791283361,0.0004471,86844.0,86843.0,0.74500661]
[1742791283566,0.0004471,86844.0,86843.0,0.75652161]
[1742791285139,0.0004471,86844.0,86843.0,0.83722161]
[1742791286125,0.0004471,86844.0,86843.0,0.83322161]
[1742791286455,0.0004471,86844.0,86843.0,0.84790673]
[1742791286663,0.0004471,86844.0,86843.0,0.84190673]
[1742791286884,0.0004471,86844.0,86843.0,0.84790673]
[1742791287050,0.0004471,86844.0,86843.0,0.84990673]
[1742791287403,0.0004471,86844.0,86843.0,0.84790673]
[1742791287804,0.0004471,86844.0,86843.0,0.85190673]
[1742791288243,0.0004471,86844.0,86843.0,0.87144758]
[1742791289193,0.0004471,86844.0,86843.0,1.16544758]
[1742791289412,0.0004471,86844.0,86843.0,1.17144758]
[1742791289948,0.0004471,86844.0,86843.0,1.16144758]
[1742791290147,0.0004471,86844.0,86843.0,1.16744758]
[1742791290718,0.0004471,86844.0,86843.0,1.17244758]
[1742791291337,0.0004471,86844.0,86843.0,1.16644758]
[1742791291814,0.0004471,86844.0,86843.0,1.17244758]
[1742791292912,0.011507,86899.0,86882.0,0.241706]
[1742791293141,0.230163,86895.0,86882.0,1.06812103]
[1742791293351,0.230163,86895.0,86882.0,1.05661203]
[1742791293352,0.00074785,86883.0,86882.0,1.05661203]
[1742791293560,0.00074785,86883.0,86882.0,0.82641503]
[1742791294483,0.24245085,86883.0,86882.0,0.82641503]
[1742791294684,0.25350834,86883.0,86882.0,0.82641503]
[1742791294891,0.25350834,86883.0,86882.0,0.84957404]
[1742791295213,0.25350834,86883.0,86882.0,0.71557404]
[1742791295525,0.25350834,86883.0,86882.0,0.84941404]
[1742791296370,0.25350834,86883.0,86882.0,0.85141404]
[1742791296947,0.25350834,86883.0,86882.0,0.59799901]
[1742791297147,0.59880834,86883.0,86882.0,0.59799901]
[1742791297360,0.59880834,86883.0,86882.0,0.02515901]
[1742791297559,0.32983488,86883.0,86882.0,0.02515901]
[1742791297671,0.02983488,86883.0,86882.0,0.15624304]
[1742791297890,0.00074785,86883.0,86882.0,0.14473404]
[1742791298249,0.011508,86896.0,86882.0,0.14473404]
[1742791298250,0.01802772,86894.0,86886.0,0.230185]
[1742791298434,0.011508,86892.0,86886.0,0.11957503]
[1742791298751,0.011509,86887.0,86886.0,0.11957503]
[1742791299116,0.02264744,86887.0,86886.0,0.11957503]
[1742791300332,0.02264744,86887.0,86886.0,0.12057503]
[1742791300532,0.02264744,86887.0,86886.0,0.001]
[1742791300533,0.39774744,86887.0,86886.0,0.001]
[1742791300805,0.32264744,86887.0,86886.0,0.001]
[1742791302245,0.541695,86886.0,86885.0,0.13368]
[1742791302445,0.55280283,86886.0,86885.0,0.13368]
[1742791303037,0.241703,86883.0,86882.0,0.02315901]
[1742791303327,0.25279332,86883.0,86882.0,0.15675901]
[1742791303544,0.55279332,86883.0,86882.0,0.02315901]
[1742791303746,0.57082249,86883.0,86882.0,0.15679901]
[1742791310275,0.57116129,86883.0,86882.0,0.15679901]
[1742791310564,0.57116129,86883.0,86882.0,0.02315901]
[1742791310795,0.61916129,86883.0,86882.0,0.02315901]
[1742791313673,0.62116129,86883.0,86882.0,0.02315901]
[1742791317102,0.541725,86875.0,86874.0,0.13308]
[1742791317480,0.55280937,86875.0,86874.0,0.13308]
[1742791318357,0.56419123,86875.0,86874.0,0.13308]
[1742791318555,0.56619123,86875.0,86874.0,0.13308]
[1742791318957,0.55480937,86875.0,86874.0,0.13308]
[1742791320732,0.55280937,86875.0,86874.0,0.13308]
[1742791321076,0.55380937,86875.0,86874.0,0.13408]
[1742791323897,0.55380937,86875.0,86874.0,0.1342495]
[1742791326060,0.25380937,86875.0,86874.0,0.1342495]
[1742791326263,0.01208437,86875.0,86874.0,0.1342495]
[1742791327054,0.02259437,86875.0,86874.0,0.15697471]
[1742791327238,0.02259437,86875.0,86874.0,0.15597471]
[1742791327440,0.02359437,86875.0,86874.0,0.15597471]
[1742791327787,0.02359437,86875.0,86874.0,0.15697471]
[1742791329423,0.02359437,86875.0,86874.0,0.72977471]
[1742791332356,0.02359437,86875.0,86874.0,0.59669471]
[1742791332687,0.02359437,86875.0,86874.0,0.72897471]
[1742791334453,0.01208437,86875.0,86874.0,1.07876774]
[1742791334647,0.001,86875.0,86874.0,0.84854974]
[1742791334770,0.01210782,86875.0,86874.0,0.84854974]
[1742791334970,0.001,86875.0,86874.0,0.84854974]
[1742791335983,0.01210782,86875.0,86874.0,0.84854974]
[1742791337708,0.02361782,86875.0,86874.0,0.84854974]
[1742791338289,0.02261782,86875.0,86874.0,0.84854974]
[1742791338493,0.02261782,86875.0,86874.0,0.84754974]
[1742791338698,0.02261782,86875.0,86874.0,0.84854974]
[1742791339707,0.02361782,86875.0,86874.0,0.84854974]
[1742791343603,0.02361782,86875.0,86874.0,0.84830974]
[1742791353611,0.02361782,86875.0,86874.0,0.72873471]
[1742791355816,0.01210782,86875.0,86874.0,0.84830974]
[1742791356014,0.01210782,86875.0,86874.0,1.39821937]
[1742791356165,0.001,86875.0,86874.0,1.43396808]
[1742791356779,0.0003388,86883.0,86882.0,0.011509]
[1742791357155,0.0003388,86883.0,86882.0,0.48818262]
[1742791357336,0.0003388,86883.0,86882.0,0.48588103]
[1742791357962,0.0003388,86883.0,86882.0,0.48788103]
[1742791358175,0.0003388,86883.0,86882.0,0.49188103]
[1742791358954,0.0003388,86883.0,86882.0,0.48037203]
[1742791359161,0.0003388,86883.0,86882.0,0.49188103]
[1742791359362,0.0003388,86883.0,86882.0,0.50365708]
[1742791360086,0.0003388,86883.0,86882.0,0.50165708]
[1742791360311,0.0003388,86883.0,86882.0,0.50065708]
[1742791360712,0.0003388,86883.0,86882.0,0.50665708]
[1742791361472,0.0003388,86883.0,86882.0,0.50365708]
[1742791362991,0.0003388,86883.0,86882.0,0.50765708]
[1742791365503,0.0003388,86883.0,86882.0,0.49614808]
[1742791365625,0.0003388,86883.0,86882.0,0.63965708]
[1742791366521,0.0003388,86883.0,86882.0,0.64426908]
[1742791369062,0.0003388,86883.0,86882.0,1.05806871]
[1742791373201,6.7e-07,86896.0,86895.0,0.25621085]
[1742791373418,6.7e-07,86896.0,86895.0,0.63448588]
[1742791373611,6.7e-07,86896.0,86895.0,0.93448588]
[1742791374314,6.7e-07,86896.0,86895.0,0.93948588]
[1742791374926,6.7e-07,86896.0,86895.0,0.94548588]
[1742791375126,8.7e-07,86904.0,86903.0,0.541648]
[1742791375328,8.7e-07,86905.0,86904.0,0.41014685]
[1742791375528,8.7e-07,86905.0,86904.0,0.57732188]
[1742791375767,8.7e-07,86905.0,86904.0,0.61280941]
[1742791376090,8.7e-07,86905.0,86904.0,0.57732188]
[1742791376294,0.01801898,86940.0,86930.0,0.23007]
[1742791376487,0.01801898,86940.0,86930.0,0.50028841]
[1742791376627,0.00046138,86931.0,86930.0,0.49798803]
[1742791377346,0.00046138,86931.0,86930.0,0.48648503]
[1742791377530,0.00046138,86931.0,86930.0,0.52050713]
[1742791377993,0.00046138,86931.0,86930.0,0.94999993]
[1742791378854,0.00046138,86931.0,86930.0,0.5362003]
[1742791379425,3.8e-07,86931.0,86930.0,0.97744115]
[1742791379553,3.8e-07,86931.0,86930.0,0.9912277]
[1742791380154,3.8e-07,86931.0,86930.0,0.9872277]
[1742791380590,3.8e-07,86931.0,86930.0,0.9932277]
[1742791380791,0.241475,86966.0,86959.0,0.229991]
[1742791380997,0.011499,86961.0,86960.0,0.82881503]
[1742791381197,0.241487,86962.0,86960.0,0.82901503]
[1742791381504,0.011499,86961.0,86960.0,0.70944]
[1742791381655,0.0115503,86961.0,86960.0,0.70944]
[1742791381854,0.241481,86963.0,86960.0,0.73238469]
[1742791382256,0.229988,86961.0,86960.0,0.73238469]
[1742791382482,0.241487,86961.0,86960.0,0.73238469]
[1742791382678,0.25304079,86961.0,86960.0,0.73238469]
[1742791383491,0.01155379,86961.0,86960.0,0.73238469]
[1742791383672,0.01155379,86961.0,86960.0,1.08194972]
[1742791383906,0.00012256,86966.0,86963.0,0.229982]
[1742791384114,0.00012256,86966.0,86964.0,0.11957503]
[1742791384317,0.01154508,86965.0,86964.0,0.11957503]
[1742791384515,0.02304308,86965.0,86964.0,0.11957503]
[1742791385061,0.011499,86961.0,86960.0,0.59538469]
[1742791385209,0.241487,86961.0,86960.0,0.73218469]
[1742791385396,0.25303904,86961.0,86960.0,0.73218469]
[1742791387285,0.01155204,86961.0,86960.0,0.73218469]
[1742791387429,0.01155204,86961.0,86960.0,0.85175972]
[1742791387636,0.241479,86964.0,86960.0,0.85175972]
[1742791387838,0.241479,86964.0,86961.0,0.11957503]
[1742791388032,0.00012256,86966.0,86961.0,0.34956303]
[1742791388033,0.01164082,86963.0,86961.0,0.34956303]
[1742791388300,0.01164082,86963.0,86961.0,0.34956203]
[1742791388509,0.00012256,86966.0,86965.0,0.229977]
[1742791388719,0.00012256,86966.0,86965.0,0.34955203]
[1742791388897,0.00012256,86966.0,86965.0,0.36105003]
[1742791389483,0.00012256,86966.0,86965.0,0.11957503]
[1742791390702,0.00012256,86966.0,86965.0,0.12057503]
[1742791390935,0.25328428,86966.0,86965.0,0.26013503]
[1742791392116,0.01181228,86966.0,86965.0,0.26013503]
[1742791392577,0.0233033,86966.0,86965.0,0.26013503]
[1742791392787,0.0118053,86966.0,86965.0,0.26013503]
[1742791393255,0.0233033,86966.0,86965.0,0.26013503]
[1742791395128,0.0233033,86966.0,86965.0,0.25913503]